[Event "Late-Titled-Tuesday-Blitz-January-30-2024"]
[Site "Chess.com"]
[Date "2024.01.30"]
[Round "11"]
[White "akanga001"]
[Black "protectiago"]
[Result "0-1"]
[WhiteElo "1982"]
[BlackElo "2072"]
[TimeControl "180+1"]
[EndTime "16:02:46 PST"]
[Termination "protectiago won by resignation"]

1. d4 {[%clk 0:02:51.5]} 1... Nf6 {[%clk 0:02:59.1]} 2. c4 {[%clk 0:02:24]} 2...
e6 {[%clk 0:02:50.5]} 3. Nf3 {[%clk 0:02:16]} 3... d5 {[%clk 0:02:48.8]} 4. Nc3
{[%clk 0:02:14.8]} 4... Be7 {[%clk 0:02:47.8]} 5. Bg5 {[%clk 0:02:14.4]} 5... b6
{[%clk 0:02:43.3]} 6. e3 {[%clk 0:02:12.7]} 6... Bb7 {[%clk 0:02:42.1]} 7. Qc2
{[%clk 0:02:11.6]} 7... Nbd7 {[%clk 0:02:41.6]} 8. b3 {[%clk 0:02:11.9]} 8... c5
{[%clk 0:02:41.6]} 9. Be2 {[%clk 0:02:11.8]} 9... Rc8 {[%clk 0:02:41.2]} 10. O-O
{[%clk 0:02:08.7]} 10... cxd4 {[%clk 0:02:41.3]} 11. Nxd4 {[%clk 0:02:05.2]}
11... h6 {[%clk 0:02:29.2]} 12. Bh4 {[%clk 0:02:03.5]} 12... O-O {[%clk
0:02:28.8]} 13. Rad1 {[%clk 0:02:01.3]} 13... Ne4 {[%clk 0:02:07.2]} 14. Nxe4
{[%clk 0:01:42.9]} 14... Bxh4 {[%clk 0:02:04.5]} 15. Nd6 {[%clk 0:01:41.6]}
15... Rb8 {[%clk 0:02:02.3]} 16. Nxb7 {[%clk 0:01:39.8]} 16... Rxb7 {[%clk
0:02:02.5]} 17. cxd5 {[%clk 0:01:37.2]} 17... exd5 {[%clk 0:02:01.7]} 18. Nf5
{[%clk 0:01:35.9]} 18... Bf6 {[%clk 0:01:59.7]} 19. Rxd5 {[%clk 0:01:31.9]}
19... Qe8 {[%clk 0:01:57.8]} 20. Nd6 {[%clk 0:01:17.2]} 20... Qe6 {[%clk
0:01:55.5]} 21. Bc4 {[%clk 0:01:16.5]} 21... Rc7 {[%clk 0:01:54.4]} 22. Rc5
{[%clk 0:01:12.8]} 22... Rxc5 {[%clk 0:01:51.9]} 23. Bxe6 {[%clk 0:01:05.2]}
23... Rxc2 {[%clk 0:01:48.6]} 24. Bxd7 {[%clk 0:01:06.1]} 24... Rd2 {[%clk
0:01:46.3]} 0-1

[Event "Late-Titled-Tuesday-Blitz-January-30-2024"]
[Site "Chess.com"]
[Date "2024.01.30"]
[Round "11"]
[White "kikoveiga"]
[Black "jinxy2009"]
[Result "1-0"]
[WhiteElo "2525"]
[BlackElo "2255"]
[TimeControl "180+1"]
[EndTime "16:02:52 PST"]
[Termination "kikoveiga won by resignation"]

1. e4 {[%clk 0:02:54.6]} 1... c5 {[%clk 0:02:58.6]} 2. Ne2 {[%clk 0:02:52.9]}
2... Nc6 {[%clk 0:02:54.2]} 3. g3 {[%clk 0:02:45.6]} 3... Nf6 {[%clk 0:02:50.4]}
4. Bg2 {[%clk 0:02:45.9]} 4... d5 {[%clk 0:02:50.3]} 5. exd5 {[%clk 0:02:45.9]}
5... Nxd5 {[%clk 0:02:51.2]} 6. O-O {[%clk 0:02:45.7]} 6... e5 {[%clk
0:02:50.6]} 7. Nbc3 {[%clk 0:02:43.9]} 7... Be6 {[%clk 0:02:49.6]} 8. d3 {[%clk
0:02:41.7]} 8... Be7 {[%clk 0:02:49.2]} 9. f4 {[%clk 0:02:41.3]} 9... Nxc3
{[%clk 0:02:45.7]} 10. Nxc3 {[%clk 0:02:40.8]} 10... exf4 {[%clk 0:02:42.2]} 11.
Bxf4 {[%clk 0:02:41.7]} 11... O-O {[%clk 0:02:41.8]} 12. Qh5 {[%clk 0:02:37.7]}
12... Qd4+ {[%clk 0:02:38.1]} 13. Kh1 {[%clk 0:02:37.2]} 13... Bf6 {[%clk
0:02:32.9]} 14. Rae1 {[%clk 0:02:34.9]} 14... g6 {[%clk 0:02:25.4]} 15. Qd1
{[%clk 0:02:33.2]} 15... Bg7 {[%clk 0:02:24.7]} 16. Ne4 {[%clk 0:02:25.8]} 16...
c4 {[%clk 0:02:18.8]} 17. Ng5 {[%clk 0:02:16.8]} 17... Bf5 {[%clk 0:02:07.8]}
18. dxc4 {[%clk 0:02:02.1]} 18... Qxc4 {[%clk 0:02:05.7]} 19. c3 {[%clk
0:01:54.5]} 19... Qxa2 {[%clk 0:02:05.3]} 20. g4 {[%clk 0:01:33.4]} 20... Be6
{[%clk 0:01:38]} 21. Nxe6 {[%clk 0:01:32.2]} 21... fxe6 {[%clk 0:01:38.9]} 22.
Rxe6 {[%clk 0:01:32.1]} 22... Rad8 {[%clk 0:01:32.4]} 23. Qe2 {[%clk 0:01:30.6]}
23... Bxc3 {[%clk 0:01:19]} 24. bxc3 {[%clk 0:01:25]} 1-0

[Event "Late-Titled-Tuesday-Blitz-January-30-2024"]
[Site "Chess.com"]
[Date "2024.01.30"]
[Round "11"]
[White "annacramling"]
[Black "Burgsvik"]
[Result "0-1"]
[WhiteElo "2117"]
[BlackElo "2291"]
[TimeControl "180+1"]
[EndTime "16:02:57 PST"]
[Termination "Burgsvik won by resignation"]

1. d4 {[%clk 0:03:00.5]} 1... c5 {[%clk 0:02:59.9]} 2. d5 {[%clk 0:02:54.9]}
2... d6 {[%clk 0:02:54]} 3. c4 {[%clk 0:02:55]} 3... g6 {[%clk 0:02:53.4]} 4.
Nc3 {[%clk 0:02:54.9]} 4... Bg7 {[%clk 0:02:52.9]} 5. Qc2 {[%clk 0:02:53.5]}
5... Nf6 {[%clk 0:02:49.8]} 6. e4 {[%clk 0:02:53.1]} 6... Na6 {[%clk 0:02:49.8]}
7. a3 {[%clk 0:02:52.8]} 7... Nc7 {[%clk 0:02:49.7]} 8. f4 {[%clk 0:02:43.4]}
8... O-O {[%clk 0:02:49.5]} 9. Nf3 {[%clk 0:02:42.2]} 9... a6 {[%clk 0:02:49.1]}
10. a4 {[%clk 0:02:41.1]} 10... Bd7 {[%clk 0:02:48.7]} 11. Bd3 {[%clk
0:02:30.2]} 11... b5 {[%clk 0:02:48]} 12. axb5 {[%clk 0:02:29.1]} 12... axb5
{[%clk 0:02:48.9]} 13. Rxa8 {[%clk 0:02:28.4]} 13... Qxa8 {[%clk 0:02:49.3]} 14.
cxb5 {[%clk 0:02:24.8]} 14... Rb8 {[%clk 0:02:48.2]} 15. O-O {[%clk 0:02:19.1]}
15... Nxb5 {[%clk 0:02:46.9]} 16. e5 {[%clk 0:00:51.7]} 16... Nxd5 {[%clk
0:02:43]} 17. Nxd5 {[%clk 0:00:46.6]} 17... Qxd5 {[%clk 0:02:39.1]} 18. Bc4
{[%clk 0:00:47]} 18... Nd4 {[%clk 0:02:29.2]} 19. Qc3 {[%clk 0:00:29.8]} 19...
Nxf3+ {[%clk 0:02:28.4]} 20. Rxf3 {[%clk 0:00:27.9]} 20... Qd4+ {[%clk
0:02:20.9]} 21. Qxd4 {[%clk 0:00:28.3]} 21... cxd4 {[%clk 0:02:20.9]} 22. exd6
{[%clk 0:00:25.6]} 22... exd6 {[%clk 0:02:20.6]} 23. b3 {[%clk 0:00:25.4]} 23...
Bg4 {[%clk 0:02:17.8]} 24. Rd3 {[%clk 0:00:23.2]} 24... Be2 {[%clk 0:02:17.2]}
25. Rd1 {[%clk 0:00:14.7]} 25... Bxd1 {[%clk 0:02:14.5]} 0-1

[Event "Late-Titled-Tuesday-Blitz-January-30-2024"]
[Site "Chess.com"]
[Date "2024.01.30"]
[Round "11"]
[White "Bkmzzzzz"]
[Black "Smile2005"]
[Result "0-1"]
[WhiteElo "2303"]
[BlackElo "2401"]
[TimeControl "180+1"]
[EndTime "16:02:58 PST"]
[Termination "Smile2005 won by resignation"]

1. e4 {[%clk 0:03:00.9]} 1... c5 {[%clk 0:02:54.2]} 2. Nf3 {[%clk 0:03:01]} 2...
e6 {[%clk 0:02:53.9]} 3. d3 {[%clk 0:03:00.8]} 3... a6 {[%clk 0:02:54]} 4. g3
{[%clk 0:02:59.5]} 4... b5 {[%clk 0:02:54.4]} 5. Bg2 {[%clk 0:02:59.7]} 5... Bb7
{[%clk 0:02:54.9]} 6. O-O {[%clk 0:03:00]} 6... Nc6 {[%clk 0:02:54.3]} 7. Re1
{[%clk 0:02:56]} 7... Be7 {[%clk 0:02:54.6]} 8. Nbd2 {[%clk 0:02:54.7]} 8... Nf6
{[%clk 0:02:55]} 9. Nf1 {[%clk 0:02:54.5]} 9... O-O {[%clk 0:02:54.9]} 10. h4
{[%clk 0:02:52]} 10... d5 {[%clk 0:02:55]} 11. e5 {[%clk 0:02:51.8]} 11... Nd7
{[%clk 0:02:55.2]} 12. h5 {[%clk 0:02:48.1]} 12... h6 {[%clk 0:02:54.2]} 13.
N1h2 {[%clk 0:02:47.4]} 13... Re8 {[%clk 0:02:53.7]} 14. Ng4 {[%clk 0:02:45.1]}
14... Bf8 {[%clk 0:02:53.4]} 15. Bf4 {[%clk 0:02:43.3]} 15... Kh7 {[%clk
0:02:48.1]} 16. Qe2 {[%clk 0:02:33.6]} 16... Qb6 {[%clk 0:02:47]} 17. Ne3 {[%clk
0:02:18.8]} 17... Rac8 {[%clk 0:02:44.5]} 18. g4 {[%clk 0:02:19]} 18... Be7
{[%clk 0:02:39.9]} 19. c3 {[%clk 0:02:06]} 19... b4 {[%clk 0:02:39.4]} 20. c4
{[%clk 0:02:06.1]} 20... Nd4 {[%clk 0:02:38.4]} 21. Nxd4 {[%clk 0:01:31.6]}
21... cxd4 {[%clk 0:02:39.3]} 22. Nc2 {[%clk 0:01:32.2]} 22... dxc4 {[%clk
0:02:36.2]} 23. Bxb7 {[%clk 0:01:22.6]} 23... Qxb7 {[%clk 0:02:37.1]} 24. dxc4
{[%clk 0:01:22.6]} 24... Bc5 {[%clk 0:02:27]} 25. Nxd4 {[%clk 0:01:18.1]} 25...
Bxd4 {[%clk 0:02:23.2]} 26. Qd3+ {[%clk 0:01:17.8]} 26... Kg8 {[%clk 0:02:24.1]}
27. Qxd4 {[%clk 0:01:18.2]} 27... Nc5 {[%clk 0:02:20.9]} 28. Red1 {[%clk
0:01:11.1]} 28... Qf3 {[%clk 0:02:19.1]} 29. Bg3 {[%clk 0:00:58.1]} 29... Red8
{[%clk 0:02:08.9]} 30. Qf4 {[%clk 0:00:50.3]} 30... Rxd1+ {[%clk 0:02:07.6]} 0-1

[Event "Late-Titled-Tuesday-Blitz-January-30-2024"]
[Site "Chess.com"]
[Date "2024.01.30"]
[Round "11"]
[White "ArtemDyachuk"]
[Black "rhungaski"]
[Result "1-0"]
[WhiteElo "2629"]
[BlackElo "2492"]
[TimeControl "180+1"]
[EndTime "16:03:14 PST"]
[Termination "ArtemDyachuk won by resignation"]

1. d4 {[%clk 0:03:00.9]} 1... g6 {[%clk 0:02:56.8]} 2. e4 {[%clk 0:02:59.7]}
2... Bg7 {[%clk 0:02:56.6]} 3. Nc3 {[%clk 0:02:59.3]} 3... d6 {[%clk 0:02:56.6]}
4. Nf3 {[%clk 0:02:59.7]} 4... a6 {[%clk 0:02:56]} 5. Be3 {[%clk 0:02:59]} 5...
Nd7 {[%clk 0:02:48.1]} 6. Qd2 {[%clk 0:02:58.6]} 6... b5 {[%clk 0:02:44.3]} 7.
a4 {[%clk 0:02:57.8]} 7... c6 {[%clk 0:02:27.4]} 8. axb5 {[%clk 0:02:56.9]} 8...
cxb5 {[%clk 0:02:24]} 9. Bxb5 {[%clk 0:02:56.9]} 9... Bb7 {[%clk 0:02:21.6]} 10.
Bc4 {[%clk 0:02:56.2]} 10... Nb6 {[%clk 0:01:58.4]} 11. Bb3 {[%clk 0:02:53.6]}
11... Qc7 {[%clk 0:01:53.9]} 12. e5 {[%clk 0:02:43.1]} 12... Nc4 {[%clk
0:01:27.3]} 13. Bxc4 {[%clk 0:02:38.3]} 13... Qxc4 {[%clk 0:01:28.2]} 14. exd6
{[%clk 0:02:38.1]} 14... Bxf3 {[%clk 0:01:08.3]} 15. d7+ {[%clk 0:02:36.6]}
15... Kxd7 {[%clk 0:01:07.7]} 16. gxf3 {[%clk 0:02:37.1]} 16... Nf6 {[%clk
0:01:04.7]} 17. Na4 {[%clk 0:02:37.1]} 17... Nd5 {[%clk 0:00:47.1]} 18. Nc5+
{[%clk 0:02:33.3]} 18... Kc6 {[%clk 0:00:45.8]} 19. Ra4 {[%clk 0:02:32]} 19...
Nxe3 {[%clk 0:00:24.4]} 20. Rxc4 {[%clk 0:02:23.5]} 20... Nxc4 {[%clk
0:00:25.3]} 21. Qc3 {[%clk 0:02:24.3]} 21... Kd5 {[%clk 0:00:19.8]} 22. O-O
{[%clk 0:02:21.3]} 22... Bxd4 {[%clk 0:00:18.2]} 23. Rd1 {[%clk 0:02:20.4]}
23... e5 {[%clk 0:00:18.8]} 24. Ne4 {[%clk 0:02:18.2]} 24... Rac8 {[%clk
0:00:18]} 25. b3 {[%clk 0:02:12.3]} 25... Ne3 {[%clk 0:00:16.8]} 26. fxe3 {[%clk
0:02:08.4]} 26... Rxc3 {[%clk 0:00:15.5]} 27. Nxc3+ {[%clk 0:02:09.3]} 27... Kc5
{[%clk 0:00:10.7]} 28. exd4+ {[%clk 0:02:10.2]} 28... exd4 {[%clk 0:00:11.4]}
29. Ne4+ {[%clk 0:02:11.1]} 1-0

[Event "Late-Titled-Tuesday-Blitz-January-30-2024"]
[Site "Chess.com"]
[Date "2024.01.30"]
[Round "11"]
[White "Herman-NY"]
[Black "aghasiyevkamal"]
[Result "0-1"]
[WhiteElo "2497"]
[BlackElo "2678"]
[TimeControl "180+1"]
[EndTime "16:03:16 PST"]
[Termination "aghasiyevkamal won on time"]

1. e4 {[%clk 0:03:00.9]} 1... e5 {[%clk 0:02:59.4]} 2. Nf3 {[%clk 0:03:00.8]}
2... Nc6 {[%clk 0:02:59.6]} 3. Bb5 {[%clk 0:03:01]} 3... a6 {[%clk 0:02:59.8]}
4. Ba4 {[%clk 0:03:01.3]} 4... Nf6 {[%clk 0:03:00]} 5. O-O {[%clk 0:03:01.9]}
5... b5 {[%clk 0:03:00.2]} 6. Bb3 {[%clk 0:03:01.8]} 6... Bc5 {[%clk 0:03:00.9]}
7. d3 {[%clk 0:02:58.9]} 7... d6 {[%clk 0:03:00.8]} 8. c3 {[%clk 0:02:55.2]}
8... h6 {[%clk 0:02:59.7]} 9. a4 {[%clk 0:02:53.8]} 9... Rb8 {[%clk 0:02:59.1]}
10. axb5 {[%clk 0:02:53.8]} 10... axb5 {[%clk 0:02:59]} 11. Be3 {[%clk
0:02:32.8]} 11... O-O {[%clk 0:02:55.1]} 12. d4 {[%clk 0:02:10.3]} 12... Bb6
{[%clk 0:02:52.4]} 13. h3 {[%clk 0:02:10.3]} 13... Bb7 {[%clk 0:02:35.5]} 14.
Nbd2 {[%clk 0:02:05]} 14... exd4 {[%clk 0:02:32.8]} 15. cxd4 {[%clk 0:02:00.6]}
15... Nb4 {[%clk 0:02:32.9]} 16. Qb1 {[%clk 0:01:21.9]} 16... c5 {[%clk
0:02:27.5]} 17. d5 {[%clk 0:00:54.8]} 17... c4 {[%clk 0:02:25.3]} 18. Bxb6
{[%clk 0:00:54.9]} 18... Qxb6 {[%clk 0:02:25]} 19. Bc2 {[%clk 0:00:55.5]} 19...
Rfe8 {[%clk 0:02:19.4]} 20. Ra3 {[%clk 0:00:43]} 20... Ra8 {[%clk 0:02:06.1]}
21. Re3 {[%clk 0:00:21]} 21... Ra1 {[%clk 0:01:59.4]} 22. Qxa1 {[%clk
0:00:18.6]} 22... Nxc2 {[%clk 0:01:59.6]} 0-1

[Event "Late-Titled-Tuesday-Blitz-January-30-2024"]
[Site "Chess.com"]
[Date "2024.01.30"]
[Round "11"]
[White "BardArtem"]
[Black "GasconJR"]
[Result "0-1"]
[WhiteElo "2752"]
[BlackElo "2619"]
[TimeControl "180+1"]
[EndTime "16:03:17 PST"]
[Termination "GasconJR won by resignation"]

1. e4 {[%clk 0:02:56]} 1... c5 {[%clk 0:02:59.8]} 2. c3 {[%clk 0:02:56]} 2...
Nf6 {[%clk 0:02:53.5]} 3. e5 {[%clk 0:02:56.1]} 3... Nd5 {[%clk 0:02:54.1]} 4.
Nf3 {[%clk 0:02:56.7]} 4... Nc6 {[%clk 0:02:53.3]} 5. Bc4 {[%clk 0:02:57.2]}
5... Nb6 {[%clk 0:02:52.7]} 6. Bb3 {[%clk 0:02:57.5]} 6... d5 {[%clk 0:02:52.7]}
7. exd6 {[%clk 0:02:58.1]} 7... Qxd6 {[%clk 0:02:52.4]} 8. O-O {[%clk
0:02:58.5]} 8... c4 {[%clk 0:02:52.4]} 9. Bc2 {[%clk 0:02:59]} 9... Bg4 {[%clk
0:02:52.5]} 10. h3 {[%clk 0:02:59.6]} 10... Bh5 {[%clk 0:02:49.7]} 11. b3 {[%clk
0:03:00]} 11... e6 {[%clk 0:02:35.9]} 12. Na3 {[%clk 0:02:58.8]} 12... Qd5
{[%clk 0:02:31.6]} 13. Re1 {[%clk 0:02:48.2]} 13... Bxf3 {[%clk 0:02:17.9]} 14.
Qxf3 {[%clk 0:02:49.1]} 14... Qxf3 {[%clk 0:02:17.9]} 15. gxf3 {[%clk
0:02:49.2]} 15... Bxa3 {[%clk 0:02:17.9]} 16. Bxa3 {[%clk 0:02:50.1]} 16...
O-O-O {[%clk 0:02:18.1]} 17. Rad1 {[%clk 0:02:49.7]} 17... Rd7 {[%clk
0:01:49.5]} 18. d4 {[%clk 0:02:42.6]} 18... cxd3 {[%clk 0:01:44.9]} 19. Rxd3
{[%clk 0:02:42]} 19... Rhd8 {[%clk 0:01:40.8]} 20. Red1 {[%clk 0:02:39.6]} 20...
Rxd3 {[%clk 0:01:34.7]} 21. Rxd3 {[%clk 0:02:40.5]} 21... Rxd3 {[%clk
0:01:30.8]} 22. Bxd3 {[%clk 0:02:41.4]} 22... Ne5 {[%clk 0:01:29.6]} 23. Be2
{[%clk 0:02:40]} 23... Nd5 {[%clk 0:01:28.9]} 24. Bd6 {[%clk 0:02:32.6]} 24...
Nxc3 {[%clk 0:01:07.5]} 25. Bxe5 {[%clk 0:02:27.4]} 25... Nxe2+ {[%clk
0:01:07.4]} 26. Kf1 {[%clk 0:02:28.1]} 26... Nc1 {[%clk 0:01:07.4]} 27. Bxg7
{[%clk 0:02:24.1]} 27... Nxa2 {[%clk 0:01:06.6]} 28. Ke2 {[%clk 0:02:24.8]}
28... Nc1+ {[%clk 0:01:05.2]} 29. Ke3 {[%clk 0:02:22]} 29... Nxb3 {[%clk
0:01:05.7]} 30. Kf4 {[%clk 0:02:22.9]} 30... Kd7 {[%clk 0:01:00.2]} 31. Kg5
{[%clk 0:02:23.1]} 31... Ke7 {[%clk 0:00:57.3]} 32. Kh6 {[%clk 0:02:23.4]} 32...
f6 {[%clk 0:00:56.2]} 33. Kxh7 {[%clk 0:02:23.4]} 33... Kf7 {[%clk 0:00:54.5]}
34. h4 {[%clk 0:02:19]} 34... Nd4 {[%clk 0:00:44.8]} 35. h5 {[%clk 0:02:14.8]}
35... Nf5 {[%clk 0:00:44.1]} 36. Bh6 {[%clk 0:02:07.5]} 36... Nxh6 {[%clk
0:00:40.7]} 37. Kxh6 {[%clk 0:02:07.4]} 37... a5 {[%clk 0:00:40.8]} 38. Kh7
{[%clk 0:02:07.8]} 38... a4 {[%clk 0:00:41.2]} 39. h6 {[%clk 0:02:07.4]} 39...
a3 {[%clk 0:00:41.6]} 40. Kh8 {[%clk 0:02:07.6]} 40... a2 {[%clk 0:00:42]} 41.
h7 {[%clk 0:02:08.5]} 41... a1=B {[%clk 0:00:34.6]} 0-1

[Event "Late-Titled-Tuesday-Blitz-January-30-2024"]
[Site "Chess.com"]
[Date "2024.01.30"]
[Round "11"]
[White "GothamChess"]
[Black "masnyszachistaaa"]
[Result "1-0"]
[WhiteElo "2728"]
[BlackElo "2552"]
[TimeControl "180+1"]
[EndTime "16:03:20 PST"]
[Termination "GothamChess won on time"]

1. e4 {[%clk 0:02:59.9]} 1... c5 {[%clk 0:02:55.6]} 2. a3 {[%clk 0:02:59.9]}
2... d5 {[%clk 0:02:37.8]} 3. exd5 {[%clk 0:02:59.7]} 3... Qxd5 {[%clk
0:02:38.7]} 4. Nf3 {[%clk 0:02:59.9]} 4... Nc6 {[%clk 0:02:37.6]} 5. Nc3 {[%clk
0:03:00.5]} 5... Qd6 {[%clk 0:02:27.3]} 6. Bc4 {[%clk 0:02:59.9]} 6... e6 {[%clk
0:02:21.4]} 7. O-O {[%clk 0:02:59]} 7... Nf6 {[%clk 0:02:21.8]} 8. Re1 {[%clk
0:02:59.2]} 8... Be7 {[%clk 0:02:21.7]} 9. d3 {[%clk 0:02:59.5]} 9... O-O {[%clk
0:02:20.8]} 10. Bg5 {[%clk 0:02:59.9]} 10... b6 {[%clk 0:02:06.9]} 11. Qd2
{[%clk 0:02:55.1]} 11... Bb7 {[%clk 0:02:04.9]} 12. Rad1 {[%clk 0:02:50.6]}
12... a6 {[%clk 0:01:44.6]} 13. Ne4 {[%clk 0:02:45.4]} 13... Nxe4 {[%clk
0:01:43.6]} 14. Rxe4 {[%clk 0:02:38.6]} 14... Bxg5 {[%clk 0:01:39.2]} 15. Nxg5
{[%clk 0:02:34.6]} 15... b5 {[%clk 0:01:18.1]} 16. Ba2 {[%clk 0:02:32.7]} 16...
Rae8 {[%clk 0:01:11.7]} 17. Rde1 {[%clk 0:02:28.4]} 17... Nd8 {[%clk 0:00:57.7]}
18. Rg4 {[%clk 0:02:21.9]} 18... Bd5 {[%clk 0:00:44.7]} 19. c4 {[%clk
0:02:20.7]} 19... Bb7 {[%clk 0:00:37.7]} 20. Qe3 {[%clk 0:02:20.6]} 20... h6
{[%clk 0:00:19.8]} 21. Ne4 {[%clk 0:02:17.9]} 21... Bxe4 {[%clk 0:00:19.7]} 22.
dxe4 {[%clk 0:02:16.1]} 22... e5 {[%clk 0:00:19.6]} 23. cxb5 {[%clk 0:02:14.5]}
23... axb5 {[%clk 0:00:20.5]} 24. Bd5 {[%clk 0:02:14.6]} 24... Ne6 {[%clk
0:00:20.3]} 25. Qxh6 {[%clk 0:02:12.4]} 25... Qe7 {[%clk 0:00:07.5]} 26. Re3
{[%clk 0:02:07.1]} 26... g6 {[%clk 0:00:01.4]} 27. Rh3 {[%clk 0:02:04]} 1-0

[Event "Late-Titled-Tuesday-Blitz-January-30-2024"]
[Site "Chess.com"]
[Date "2024.01.30"]
[Round "11"]
[White "HajiyevKanan"]
[Black "ACollins05"]
[Result "1-0"]
[WhiteElo "2568"]
[BlackElo "2461"]
[TimeControl "180+1"]
[EndTime "16:03:27 PST"]
[Termination "HajiyevKanan won by resignation"]

1. d4 {[%clk 0:03:00.9]} 1... b5 {[%clk 0:02:57.6]} 2. Nf3 {[%clk 0:03:01.8]}
2... Bb7 {[%clk 0:02:53.8]} 3. g3 {[%clk 0:03:02]} 3... Nf6 {[%clk 0:02:52.7]}
4. Bg2 {[%clk 0:03:02.6]} 4... e6 {[%clk 0:02:53.1]} 5. Nh4 {[%clk 0:03:03.1]}
5... Bxg2 {[%clk 0:02:50.5]} 6. Nxg2 {[%clk 0:03:04]} 6... Be7 {[%clk
0:02:49.8]} 7. O-O {[%clk 0:03:04.3]} 7... O-O {[%clk 0:02:50.3]} 8. a4 {[%clk
0:03:04.8]} 8... b4 {[%clk 0:02:49.7]} 9. c4 {[%clk 0:03:05]} 9... bxc3 {[%clk
0:02:49.3]} 10. bxc3 {[%clk 0:03:05.4]} 10... d5 {[%clk 0:02:49.9]} 11. Ba3
{[%clk 0:03:04.1]} 11... Nbd7 {[%clk 0:02:47.5]} 12. Qc1 {[%clk 0:03:02.8]}
12... c5 {[%clk 0:02:46.9]} 13. Nd2 {[%clk 0:03:00.6]} 13... Rc8 {[%clk
0:02:45.6]} 14. Qb2 {[%clk 0:02:56.5]} 14... Nb6 {[%clk 0:02:43.6]} 15. a5
{[%clk 0:02:43.5]} 15... Nbd7 {[%clk 0:02:36.9]} 16. Qb7 {[%clk 0:02:41.2]}
16... Rc7 {[%clk 0:02:34]} 17. Qb5 {[%clk 0:02:39.8]} 17... Ne8 {[%clk
0:02:28.9]} 18. Rfb1 {[%clk 0:02:30.1]} 18... Nd6 {[%clk 0:02:27.9]} 19. Qa4
{[%clk 0:02:30.6]} 19... cxd4 {[%clk 0:02:26.1]} 20. cxd4 {[%clk 0:02:29.2]}
20... Nc4 {[%clk 0:02:26.4]} 21. Bxe7 {[%clk 0:02:16.8]} 21... Qxe7 {[%clk
0:02:27.3]} 22. Qd1 {[%clk 0:01:52.9]} 22... Rfc8 {[%clk 0:02:20.6]} 23. Nxc4
{[%clk 0:01:41.7]} 23... dxc4 {[%clk 0:02:16.2]} 24. Ne3 {[%clk 0:01:34.2]}
24... Nf6 {[%clk 0:02:13.8]} 25. a6 {[%clk 0:01:30.5]} 25... Nd5 {[%clk
0:02:13.2]} 26. Nxd5 {[%clk 0:01:25]} 26... exd5 {[%clk 0:02:14.1]} 27. e3
{[%clk 0:01:25.8]} 27... Qe6 {[%clk 0:02:07.1]} 28. Rb7 {[%clk 0:01:20.4]} 28...
c3 {[%clk 0:02:01.9]} 29. Qc2 {[%clk 0:01:18.4]} 29... Qe4 {[%clk 0:01:56.6]}
30. Qxe4 {[%clk 0:01:13.4]} 30... dxe4 {[%clk 0:01:57.5]} 31. Rc1 {[%clk
0:01:10.1]} 31... g6 {[%clk 0:01:54]} 32. Rb5 {[%clk 0:01:01.3]} 32... Rc6
{[%clk 0:01:52]} 33. Rb3 {[%clk 0:00:58]} 33... f5 {[%clk 0:01:46.3]} 34. Kg2
{[%clk 0:00:55.4]} 34... Kf7 {[%clk 0:01:43.4]} 35. Rb7+ {[%clk 0:00:54.1]}
35... R6c7 {[%clk 0:01:43.1]} 36. g4 {[%clk 0:00:53.8]} 36... Ke6 {[%clk
0:01:42.2]} 37. gxf5+ {[%clk 0:00:50.4]} 37... gxf5 {[%clk 0:01:43.1]} 38. Rb5
{[%clk 0:00:48.8]} 38... Rc6 {[%clk 0:01:41.8]} 39. d5+ {[%clk 0:00:48.5]} 39...
Kd6 {[%clk 0:01:40]} 40. dxc6 {[%clk 0:00:49]} 40... Rxc6 {[%clk 0:01:40.9]} 1-0

[Event "Late-Titled-Tuesday-Blitz-January-30-2024"]
[Site "Chess.com"]
[Date "2024.01.30"]
[Round "11"]
[White "DefiantChair"]
[Black "english_player_89"]
[Result "0-1"]
[WhiteElo "2592"]
[BlackElo "2450"]
[TimeControl "180+1"]
[EndTime "16:03:30 PST"]
[Termination "english_player_89 won by resignation"]

1. e4 {[%clk 0:03:00.9]} 1... e5 {[%clk 0:02:59.5]} 2. Nf3 {[%clk 0:03:00.9]}
2... Nc6 {[%clk 0:03:00.1]} 3. Bb5 {[%clk 0:03:00.6]} 3... a6 {[%clk 0:03:00.6]}
4. Ba4 {[%clk 0:03:00.9]} 4... Nf6 {[%clk 0:03:01]} 5. O-O {[%clk 0:03:01.2]}
5... Be7 {[%clk 0:03:01.5]} 6. Re1 {[%clk 0:03:01.8]} 6... b5 {[%clk 0:03:02]}
7. Bb3 {[%clk 0:03:02.6]} 7... d6 {[%clk 0:03:02.9]} 8. c3 {[%clk 0:03:03.3]}
8... O-O {[%clk 0:03:03.1]} 9. h3 {[%clk 0:03:04.2]} 9... Nb8 {[%clk 0:03:03.2]}
10. d4 {[%clk 0:03:05]} 10... Nbd7 {[%clk 0:03:03.9]} 11. Nbd2 {[%clk
0:03:05.5]} 11... Bb7 {[%clk 0:03:04.3]} 12. Bc2 {[%clk 0:03:06.1]} 12... Re8
{[%clk 0:03:04.9]} 13. Nf1 {[%clk 0:03:06.7]} 13... Bf8 {[%clk 0:03:05.4]} 14.
Ng3 {[%clk 0:03:07.4]} 14... g6 {[%clk 0:03:06.1]} 15. Bg5 {[%clk 0:03:07.8]}
15... Bg7 {[%clk 0:03:06]} 16. Qc1 {[%clk 0:03:04.9]} 16... c6 {[%clk
0:03:04.7]} 17. b3 {[%clk 0:02:56.9]} 17... Qc7 {[%clk 0:03:03.3]} 18. h4 {[%clk
0:02:56.1]} 18... Nf8 {[%clk 0:03:01.7]} 19. h5 {[%clk 0:02:55.6]} 19... Ne6
{[%clk 0:03:01.2]} 20. Be3 {[%clk 0:02:53.7]} 20... Ng4 {[%clk 0:02:58.2]} 21.
a4 {[%clk 0:02:43.9]} 21... Nxe3 {[%clk 0:02:55.5]} 22. Qxe3 {[%clk 0:02:43.8]}
22... c5 {[%clk 0:02:43.4]} 23. d5 {[%clk 0:02:43.8]} 23... Nf4 {[%clk
0:02:43.4]} 24. a5 {[%clk 0:02:35.2]} 24... Bc8 {[%clk 0:02:42.5]} 25. Nh2
{[%clk 0:02:32.9]} 25... Bh6 {[%clk 0:02:39.3]} 26. Qf3 {[%clk 0:02:27.7]} 26...
Qe7 {[%clk 0:02:21.2]} 27. Ng4 {[%clk 0:02:25.1]} 27... Bg7 {[%clk 0:02:12]} 28.
Ne3 {[%clk 0:02:23.1]} 28... Qh4 {[%clk 0:02:02.3]} 29. c4 {[%clk 0:02:17.9]}
29... b4 {[%clk 0:01:50.5]} 30. Reb1 {[%clk 0:02:17.9]} 30... Bd7 {[%clk
0:01:49.6]} 31. Kf1 {[%clk 0:02:17.2]} 31... gxh5 {[%clk 0:01:39.1]} 32. Nef5
{[%clk 0:02:09.1]} 32... Bxf5 {[%clk 0:01:38.6]} 33. exf5 {[%clk 0:02:10]} 33...
e4 {[%clk 0:01:31.4]} 34. Bxe4 {[%clk 0:02:08.8]} 34... Bxa1 {[%clk 0:01:30.9]}
35. Rxa1 {[%clk 0:02:09.7]} 35... Re5 {[%clk 0:01:26.9]} 36. Ke1 {[%clk
0:02:06.1]} 36... Rae8 {[%clk 0:00:59.3]} 37. Kd1 {[%clk 0:02:05.1]} 37... Rxe4
{[%clk 0:00:49.8]} 38. Nxe4 {[%clk 0:02:03.7]} 38... Qh1+ {[%clk 0:00:49.4]} 39.
Kc2 {[%clk 0:02:01.2]} 39... Qxa1 {[%clk 0:00:47.3]} 40. Nf6+ {[%clk 0:01:52.4]}
40... Qxf6 {[%clk 0:00:46]} 0-1